lending/lending_fUSD_20240504
["ID","MTS","AMOUNT","RATE_DAILY","PERIOD"]
[325408340,1714854652389,-151.0,0.0004,14]
[325408341,1714854652399,-365.894625,0.0004,14]
[325408342,1714854652410,-365.894625,0.0004,14]
[325408343,1714854652420,-307.378328,0.0004,14]
[325408344,1714854652434,-365.894625,0.0004,14]
[325408345,1714854652443,-307.378328,0.0004,14]
[325408346,1714854652453,-365.894625,0.0004,14]
[325408347,1714854652463,-307.378328,0.0004,14]
[325408348,1714854652472,-307.378328,0.0004,14]
[325408349,1714854652482,-151.0,0.0004,14]
[325408350,1714854652491,-151.0,0.0004,14]
[325408351,1714854652500,-327.050524,0.0004,14]
[325408352,1714854652512,-327.050524,0.0004,14]
[325408353,1714854652523,-151.0,0.0004,14]
[325408354,1714854652533,-380.878527,0.0004,14]
[325408355,1714854652542,-151.0,0.0004,14]
[325408356,1714854652551,-380.878527,0.0004,14]
[325408357,1714854652561,-151.0,0.0004,14]
[325408358,1714854652570,-249.816609,0.0004,14]
[325408359,1714854652579,-380.878527,0.0004,14]
[325408360,1714854652589,-380.878527,0.0004,14]
[325408361,1714854652600,-327.050524,0.0004,14]
[325408362,1714854652609,-327.050524,0.0004,14]
[325408363,1714854652619,-151.0,0.0004,14]
[325408364,1714854652628,-151.0,0.0004,14]
[325408365,1714854652720,-151.0,0.0004,14]
[325408366,1714854652731,-151.0,0.0004,14]
[325408367,1714854652740,-188.496108,0.0004,14]
[325408368,1714854652750,-188.496108,0.0004,14]
[325408369,1714854652759,-188.496108,0.0004,14]
[325408370,1714854652768,-188.496108,0.0004,14]
[325408371,1714854652778,-151.0,0.0004,14]
[325408372,1714854652787,-151.0,0.0004,14]
[325408373,1714854652796,-166.965362,0.0004,14]
[325408374,1714854652805,-166.965362,0.0004,14]
[325408375,1714854652815,-166.965362,0.0004,14]
[325408376,1714854652826,-166.965362,0.0004,14]
[325408377,1714854652836,-151.0,0.0004,14]
[325408378,1714854652846,-151.0,0.0004,14]
[325408379,1714854652856,-151.0,0.0004,14]
[325408380,1714854652865,-151.0,0.0004,14]
[325408381,1714854652874,-151.0,0.0004,14]
[325408382,1714854652883,-151.0,0.0004,14]
[325408383,1714854652892,-151.0,0.0004,14]
[325408384,1714854652901,-151.0,0.0004,14]
[325408385,1714854652910,-151.0,0.0004,14]
[325408386,1714854652921,-151.0,0.0004,14]
[325408387,1714854652930,-151.0,0.0004,14]
[325408388,1714854652940,-151.0,0.0004,14]
[325408389,1714854652949,-151.0,0.0004,14]
[325408390,1714854652958,-151.0,0.0004,14]
[325408391,1714854652967,-151.0,0.0004,14]
[325408392,1714854652977,-151.0,0.0004,14]
[325408393,1714854652987,-151.0,0.0004,14]
[325408394,1714854652996,-151.0,0.0004,14]
[325408395,1714854653008,-151.0,0.0004,14]
[325408396,1714854653019,-151.0,0.0004,14]
[325408397,1714854653028,-151.0,0.0004,14]
[325408398,1714854653039,-213.291728,0.0004,14]
[325408399,1714854653050,-151.0,0.0004,14]
[325408400,1714854653059,-151.0,0.0004,14]
[325408401,1714854653068,-151.0,0.0004,14]
[325408402,1714854653077,-151.0,0.0004,14]
[325408403,1714854653088,-151.0,0.0004,14]
[325408404,1714854653098,-151.0,0.0004,14]
[325408405,1714854653107,-166.012306,0.0004,14]
[325408406,1714854653117,-166.012306,0.0004,14]
[325408407,1714854653126,-166.012306,0.0004,14]
[325408408,1714854653135,-166.012306,0.0004,14]
[325408409,1714854653145,-151.0,0.0004,14]
[325408410,1714854653154,-151.0,0.0004,14]
[325408411,1714854653164,-154.119388,0.0004,14]
[325408412,1714854653173,-151.0,0.0004,14]
[325408413,1714854653182,-151.0,0.0004,14]
[325408414,1714854653191,-349.911696,0.0004,14]
[325408415,1714854653200,-349.911696,0.0004,14]
[325408416,1714854653210,-349.911696,0.0004,14]
[325408417,1714854653219,-151.0,0.0004,14]
[325408418,1714854653228,-349.911696,0.0004,14]
[325408419,1714854653237,-151.0,0.0004,14]
[325408420,1714854653246,-151.0,0.0004,14]
[325408421,1714854653256,-151.0,0.0004,14]
[325408422,1714854653265,-299.587713,0.0004,14]
[325408423,1714854653274,-299.587713,0.0004,14]
[325408424,1714854653284,-294.735241,0.0004,14]
[325408425,1714854653293,-294.735241,0.0004,14]
[325408426,1714854653303,-299.587713,0.0004,14]
[325408427,1714854653312,-299.587713,0.0004,14]
[325408428,1714854653321,-294.735241,0.0004,14]
[325408429,1714854653332,-294.735241,0.0004,14]
[325408430,1714854653341,-151.0,0.0004,14]
[325408431,1714854653351,-151.0,0.0004,14]
[325408432,1714854653360,-151.0,0.0004,14]
[325408433,1714854653371,-151.0,0.0004,14]
[325408434,1714854653380,-151.0,0.0004,14]
[325408435,1714854653389,-151.0,0.0004,14]
[325408436,1714854653398,-151.0,0.0004,14]
[325408437,1714854653407,-151.0,0.0004,14]
[325408438,1714854653416,-151.0,0.0004,14]
[325408439,1714854653428,-151.0,0.0004,14]
[325408440,1714854653438,-151.0,0.0004,14]
[325408441,1714854653448,-151.0,0.0004,14]
[325408442,1714854653459,-151.0,0.0004,14]
[325408443,1714854653469,-151.0,0.0004,14]
[325408444,1714854653480,-151.0,0.0004,14]
[325408445,1714854653490,-151.0,0.0004,14]
[325408446,1714854653499,-350.930088,0.0004,14]
[325408447,1714854653510,-350.930088,0.0004,14]
[325408448,1714854653520,-151.0,0.0004,14]
[325408449,1714854653529,-151.0,0.0004,14]
[325408450,1714854653538,-350.930088,0.0004,14]
[325408451,1714854653547,-350.930088,0.0004,14]
[325408452,1714854653556,-153.580035,0.0004,14]
[325408453,1714854653565,-151.0,0.0004,14]
[325408454,1714854653575,-151.0,0.0004,14]
[325408455,1714854653585,-151.0,0.0004,14]
[325408456,1714854653594,-151.0,0.0004,14]
[325408457,1714854653604,-250.401572,0.0004,14]
[325408458,1714854653614,-250.401572,0.0004,14]
[325408459,1714854653625,-151.0,0.0004,14]
[325408460,1714854653636,-291.57,0.0004,14]
[325408461,1714854653645,-250.401572,0.0004,14]
[325408462,1714854653654,-250.401572,0.0004,14]
[325408463,1714854653663,-360.327809,0.0004,14]
[325408464,1714854653672,-151.0,0.0004,14]
[325408465,1714854653681,-360.327809,0.0004,14]
[325408466,1714854653690,-151.0,0.0004,14]
[325408467,1714854653699,-163.840553,0.0004,7]
[325408468,1714854653708,-151.0,0.0004,14]
[325408469,1714854653717,-405.533453,0.0004,14]
[325408470,1714854653726,-405.533453,0.0004,14]
[325408471,1714854653736,-151.0,0.0004,14]
[325408472,1714854653745,-213.845176,0.0004,14]
[325408473,1714854653754,-24475.0,0.0004,5]
[325408474,1714854653764,-879.23593457,0.0004001,30]
[325408475,1714854653773,-1000.0,0.0004004,30]
[325408476,1714854653782,-191.66075949,0.00040041,7]
[325408477,1714854653792,-154.09323601,0.00040057,30]
[325408478,1714854653801,-323.25,0.00040063,120]
[325408479,1714854653811,-174.37436,0.00040088,30]
[325408480,1714854653820,-191.66075949,0.00040094,7]
[325408481,1714854653829,-300.0,0.000401,6]
[325408482,1714854653839,-152.0,0.00040106,6]
[325408483,1714854653848,-169.46313178,0.00040108,30]
[325408484,1714854653857,-157.20955545,0.00040113,30]
[325408485,1714854653867,-1000.0,0.00040134,30]
[325408486,1714854653876,-191.66075949,0.00040146,7]
[325408487,1714854653884,-191.66075949,0.00040198,7]
[325408488,1714854653894,-1000.0,0.00040227,30]
[325408489,1714854653903,-191.66075949,0.00040251,7]
[325408490,1714854653912,-174.37436,0.00040288,30]
[325408491,1714854653921,-191.66075949,0.00040303,7]
[325408492,1714854653929,-150.0,0.00040303,7]
[325408493,1714854653938,-152.57440342,0.00040308,30]
[325408494,1714854653947,-1000.0,0.00040321,30]
[325408495,1714854653957,-2743.4,0.00040327,79]
[325408496,1714854653966,-191.66075949,0.00040356,7]
[325408497,1714854653976,-151.90116222,0.00040366,30]
[325408498,1714854653985,-150.0,0.00040375,2]
[325408499,1714854653994,-191.66075949,0.00040408,7]
[325408500,1714854654003,-1000.0,0.00040414,30]
[325408501,1714854654013,-543.22508611,0.00040431,30]
[325408502,1714854654022,-191.66075949,0.00040461,7]
[325408503,1714854654031,-150.0,0.00040461,7]
[325408504,1714854654041,-153.6165589,0.00040474,30]
[325408505,1714854654050,-174.37436,0.00040488,30]
[325408506,1714854654059,-1353.0,0.000405,30]
[325408507,1714854654068,-150.0,0.000405,30]
[325408508,1714854654078,-243.92702,0.00040503,30]
[325408509,1714854654087,-1000.0,0.00040508,30]
[325408510,1714854654097,-191.66075949,0.00040513,7]
[325408511,1714854654106,-373575.83551283,0.00040525,2]
[325408512,1714854654115,-45409.00100792,0.00040525,2]
[325408513,1714854654124,-500.0,0.00040547,10]
[325408514,1714854654133,-500.0,0.00040547,10]
[325408515,1714854654142,-191.66075949,0.00040566,7]
[325408516,1714854654152,-168.5177974,0.00040585,30]
[325408517,1714854654161,-169.46313178,0.00040599,30]
[325408518,1714854654171,-300.0,0.000406,7]
[325408519,1714854654179,-1000.0,0.00040601,30]
[325408520,1714854654189,-191.66075949,0.00040618,7]
[325408521,1714854654198,-191.66075949,0.0004067,7]
[325408522,1714854654208,-174.37436,0.00040688,30]
[325408523,1714854654217,-1000.0,0.00040695,30]
[325408524,1714854654226,-216.0,0.000407,2]
[325408525,1714854654235,-191.66075949,0.00040723,7]
[325408526,1714854654244,-500.0,0.0004077,30]
[325408527,1714854654253,-191.66075949,0.00040775,7]
[325408528,1714854654262,-150.0,0.00040775,7]
[325408529,1714854654271,-1000.0,0.00040789,30]
[325408530,1714854654280,-1033.0,0.00040793,5]
[325408531,1714854654290,-164.37,0.000408,60]
[325408532,1714854654299,-191.66075949,0.00040828,7]
[325408533,1714854654308,-159.34,0.00040868,2]
[325408534,1714854654318,-191.66075949,0.0004088,7]
[325408535,1714854654327,-1000.0,0.00040882,30]
[325408536,1714854654336,-2804.3879192,0.000409,40]
[325408537,1714854654345,-191.66075949,0.00040933,7]
[325408538,1714854654355,-1000.0,0.00040976,30]
[325408539,1714854654364,-2621.70181116,0.00040978,44]
[325408540,1714854654373,-8355.461751,0.0004098,2]
[325408541,1714854654382,-191.66075949,0.00040985,7]
[325408542,1714854654391,-169.46313178,0.00040989,30]
[325408543,1714854654400,-488.6684714,0.00040993,120]
[325408544,1714854654409,-492.82793342,0.00040995,28]
[325408545,1714854654419,-423.20112849,0.00040999,30]
[325408546,1714854654431,-50000.0,0.00041,21]
[325408547,1714854654441,-50000.0,0.00041,31]
[325408548,1714854654450,-30025.17281816,0.00041,2]
[325408549,1714854654459,-1000000.0,0.00041,30]
[325408550,1714854654469,-22453.25279045,0.00041,10]
[325408551,1714854654478,-2000.0,0.00041,30]
[325408552,1714854654488,-150.0,0.00041,120]
[325408553,1714854654497,-900.0,0.00041,42]
[325408554,1714854654507,-839.54395265,0.00041,120]
[325408555,1714854654516,-2000.0,0.00041,120]
[325408556,1714854654525,-1050.0,0.00041,120]
[325408557,1714854654535,-1000.0,0.00041,120]
[325408558,1714854654543,-1000.0,0.00041,120]
[325408559,1714854654553,-1000.0,0.00041,120]
[325408560,1714854654564,-1000.0,0.00041,120]
[325408561,1714854654575,-1000.0,0.00041,30]
[325408562,1714854654585,-1000.0,0.00041,30]
[325408563,1714854654594,-1000.0,0.00041,30]
[325408564,1714854654604,-979.46,0.00041,30]
[325408565,1714854654614,-10000.0,0.00041,5]
[325408566,1714854654623,-481.80658234,0.00041,30]
[325408567,1714854654632,-1000.0,0.00041,120]
[325408568,1714854654642,-1000.0,0.00041,120]
[325408569,1714854654651,-1000.0,0.00041,120]
[325408570,1714854654660,-1000.0,0.00041,120]
[325408571,1714854654669,-1000.0,0.00041,120]
[325408572,1714854654678,-1000.0,0.00041,120]
[325408573,1714854654687,-1000.0,0.00041,30]
[325408574,1714854654696,-1000.0,0.00041,30]
[325408575,1714854654705,-1000.0,0.00041,30]
[325408576,1714854654715,-1000.0,0.00041,30]
[325408577,1714854654723,-1000.0,0.00041,30]
[325408578,1714854654733,-1000.0,0.00041,30]
[325408579,1714854654743,-1000.0,0.00041,30]
[325408580,1714854654752,-387.37,0.00041,30]
[325408581,1714854654762,-500.0,0.00041,60]
[325408582,1714854654772,-19999.999999,0.00041,30]
[325408583,1714854654783,-150.0,0.00041,30]
[325408584,1714854654793,-228.965476,0.00041,14]
[325408585,1714854654803,-151.0,0.00041,14]
[325408586,1714854654812,-151.0,0.00041,14]
[325408587,1714854654822,-151.0,0.00041,7]
[325408588,1714854654831,-151.0,0.00041,7]
[325408589,1714854654841,-151.0,0.00041,14]
[325408590,1714854654851,-180.694098,0.00041,14]
[325408591,1714854654860,-151.0,0.00041,14]
[325408592,1714854654869,-151.0,0.00041,14]
[325408593,1714854654880,-151.0,0.00041,14]
[325408594,1714854654890,-151.0,0.00041,14]
[325408595,1714854654899,-151.0,0.00041,14]
[325408596,1714854654909,-151.0,0.00041,14]
[325408597,1714854654918,-247.007737,0.00041,14]
[325408598,1714854654927,-247.007737,0.00041,14]
[325408599,1714854654936,-151.0,0.00041,14]
[325408600,1714854654945,-151.0,0.00041,14]
[325408601,1714854654953,-151.0,0.00041,14]
[325408602,1714854654963,-151.0,0.00041,14]
[325408603,1714854654973,-151.0,0.00041,14]
[325408604,1714854654983,-151.0,0.00041,14]
[325408605,1714854654992,-151.0,0.00041,14]
[325408606,1714854655002,-151.0,0.00041,14]
[325408607,1714854655011,-151.0,0.00041,14]
[325408608,1714854655022,-151.0,0.00041,14]
[325408609,1714854655034,-151.0,0.00041,14]
[325408610,1714854655044,-151.0,0.00041,14]
[325408611,1714854655053,-151.0,0.00041,14]
[325408612,1714854655063,-151.0,0.00041,14]
[325408613,1714854655072,-151.0,0.00041,14]
[325408614,1714854655081,-971.181849,0.00041,14]
[325408615,1714854655090,-971.181849,0.00041,14]
[325408616,1714854655100,-971.181849,0.00041,14]
[325408617,1714854655109,-971.181849,0.00041,14]
[325408618,1714854655118,-151.0,0.00041,14]
[325408619,1714854655127,-151.0,0.00041,14]
[325408620,1714854655137,-151.0,0.00041,14]
[325408621,1714854655146,-151.0,0.00041,14]
[325408622,1714854655155,-151.0,0.00041,14]
[325408623,1714854655164,-192.353929,0.00041,14]
[325408624,1714854655173,-229.443621,0.00041,14]
[325408625,1714854655182,-229.443621,0.00041,14]
[325408626,1714854655191,-229.443621,0.00041,14]
[325408627,1714854655200,-229.443621,0.00041,14]
[325408628,1714854655209,-151.0,0.00041,14]
[325408629,1714854655218,-151.0,0.00041,14]
[325408630,1714854655227,-365.894625,0.00041,14]
[325408631,1714854655236,-365.894625,0.00041,14]
[325408632,1714854655245,-307.378328,0.00041,14]
[325408633,1714854655254,-365.894625,0.00041,14]
[325408634,1714854655262,-307.378328,0.00041,14]
[325408635,1714854655272,-365.894625,0.00041,14]
[325408636,1714854655281,-307.378328,0.00041,14]
[325408637,1714854655290,-307.378328,0.00041,14]
[325408638,1714854655300,-151.0,0.00041,14]
[325408639,1714854655309,-151.0,0.00041,14]
[325408640,1714854655318,-151.0,0.00041,14]
[325408641,1714854655327,-327.050524,0.00041,14]
[325408642,1714854655336,-380.878527,0.00041,14]
[325408643,1714854655347,-327.050524,0.00041,14]
[325408644,1714854655356,-380.878527,0.00041,14]
[325408645,1714854655365,-380.878527,0.00041,14]
[325408646,1714854655376,-380.878527,0.00041,14]
[325408647,1714854655386,-327.050524,0.00041,14]
[325408648,1714854655397,-327.050524,0.00041,14]
[325408649,1714854655408,-151.0,0.00041,14]
[325408650,1714854655419,-151.0,0.00041,14]
[325408651,1714854655433,-151.0,0.00041,14]
[325408652,1714854655443,-188.496108,0.00041,14]
[325408653,1714854655452,-188.496108,0.00041,14]
[325408654,1714854655463,-188.496108,0.00041,14]
[325408655,1714854655474,-188.496108,0.00041,14]
[325408656,1714854655484,-151.0,0.00041,14]
[325408657,1714854655493,-166.965362,0.00041,14]
[325408658,1714854655505,-166.965362,0.00041,14]
[325408659,1714854655514,-166.965362,0.00041,14]
[325408660,1714854655523,-166.965362,0.00041,14]
[325408661,1714854655532,-151.0,0.00041,14]
[325408662,1714854655541,-151.0,0.00041,14]
[325408663,1714854655550,-151.0,0.00041,14]
[325408664,1714854655559,-151.0,0.00041,14]
[325408665,1714854655568,-151.0,0.00041,14]
[325408666,1714854655577,-301.069162,0.00041,14]
[325408667,1714854655587,-151.0,0.00041,14]
[325408668,1714854655596,-151.0,0.00041,14]
[325408669,1714854655605,-151.0,0.00041,14]
[325408670,1714854655614,-151.0,0.00041,14]
[325408671,1714854655623,-151.0,0.00041,14]
[325408672,1714854655632,-151.0,0.00041,14]
[325408673,1714854655641,-151.0,0.00041,14]
[325408674,1714854655650,-151.0,0.00041,14]
[325408675,1714854655660,-151.0,0.00041,14]
[325408676,1714854655670,-151.0,0.00041,14]
[325408677,1714854655680,-151.0,0.00041,14]
[325408678,1714854655689,-151.0,0.00041,14]
[325408679,1714854655699,-151.0,0.00041,14]
[325408680,1714854655709,-226.36409,0.00041,14]
[325408681,1714854655718,-151.0,0.00041,14]
[325408682,1714854655728,-151.0,0.00041,14]
[325408683,1714854655737,-166.012306,0.00041,14]
[325408684,1714854655747,-166.012306,0.00041,14]
[325408685,1714854655757,-166.012306,0.00041,14]
[325408686,1714854655766,-166.012306,0.00041,14]
[325408687,1714854655777,-151.0,0.00041,14]
[325408688,1714854655787,-151.0,0.00041,14]
[325408689,1714854655796,-151.0,0.00041,14]
[325408690,1714854655806,-151.0,0.00041,14]
[325408691,1714854655815,-349.911696,0.00041,14]
[325408692,1714854655826,-349.911696,0.00041,14]
[325408693,1714854655836,-349.911696,0.00041,14]
[325408694,1714854655847,-151.0,0.00041,14]
[325408695,1714854655856,-349.911696,0.00041,14]
[325408696,1714854655866,-151.0,0.00041,14]
[325408697,1714854655875,-151.0,0.00041,14]
[325408698,1714854655884,-151.0,0.00041,14]
[325408699,1714854655893,-299.587713,0.00041,14]
[325408700,1714854655902,-299.587713,0.00041,14]
[325408701,1714854655911,-294.735241,0.00041,14]
[325408702,1714854655920,-294.735241,0.00041,14]
[325408703,1714854655930,-299.587713,0.00041,14]
[325408704,1714854655938,-299.587713,0.00041,14]
[325408705,1714854655948,-294.735241,0.00041,14]
[325408706,1714854655957,-294.735241,0.00041,14]
[325408707,1714854655966,-151.0,0.00041,14]
[325408708,1714854655975,-151.0,0.00041,14]
[325408709,1714854655984,-253.830931,0.00041,14]
[325408710,1714854655993,-151.0,0.00041,14]
[325408711,1714854656003,-151.0,0.00041,14]
[325408712,1714854656012,-151.0,0.00041,14]
[325408713,1714854656021,-151.0,0.00041,14]
[325408714,1714854656031,-151.0,0.00041,14]
[325408715,1714854656041,-151.0,0.00041,14]
[325408716,1714854656050,-151.0,0.00041,14]
[325408717,1714854656059,-151.0,0.00041,14]
[325408718,1714854656068,-151.0,0.00041,14]
[325408719,1714854656077,-151.0,0.00041,14]
[325408720,1714854656086,-283.861427,0.00041,14]
[325408721,1714854656096,-350.930088,0.00041,14]
[325408722,1714854656105,-350.930088,0.00041,14]
[325408723,1714854656115,-151.0,0.00041,14]
[325408724,1714854656124,-151.0,0.00041,14]
[325408725,1714854656133,-350.930088,0.00041,14]
[325408726,1714854656142,-350.930088,0.00041,14]
[325408727,1714854656152,-151.0,0.00041,14]
[325408728,1714854656160,-214.715725,0.00041,14]
[325408729,1714854656169,-154.385052,0.00041,14]
[325408730,1714854656178,-250.401572,0.00041,14]
[325408731,1714854656187,-250.401572,0.00041,14]
[325408732,1714854656196,-250.401572,0.00041,14]
[325408733,1714854656206,-250.401572,0.00041,14]
[325408734,1714854656215,-360.327809,0.00041,14]
[325408735,1714854656224,-360.327809,0.00041,14]
[325408736,1714854656233,-151.0,0.00041,14]
[325408737,1714854656242,-151.0,0.00041,14]
[325408738,1714854656252,-360.327809,0.00041,14]
[325408739,1714854656261,-360.327809,0.00041,14]
[325408740,1714854656271,-151.0,0.00041,14]
[325408741,1714854656280,-151.0,0.00041,14]
[325408742,1714854656289,-151.0,0.00041,14]
[325408743,1714854656298,-221.10003,0.00041,14]
[325408744,1714854656307,-405.533453,0.00041,14]
[325408745,1714854656316,-405.533453,0.00041,14]
[325408746,1714854656325,-405.533453,0.00041,14]
[325408747,1714854656334,-405.533453,0.00041,14]
[325408748,1714854656343,-151.0,0.00041,14]
[325408749,1714854656354,-151.0,0.00041,14]
[325408750,1714854656363,-191.66075949,0.00041037,7]
[325408751,1714854656372,-150.0,0.00041037,7]
[325408752,1714854656381,-500.0,0.00041044,30]
[325408753,1714854656390,-9741.0,0.0004105,120]
[325408754,1714854656399,-1000.0,0.00041069,30]
[325408755,1714854656409,-174.37436,0.00041088,30]
[325408756,1714854656419,-191.66075949,0.0004109,7]
[325408757,1714854656432,-500.0,0.00041095,30]
[325408758,1714854656442,-500.0,0.00041095,30]
[325408759,1714854656451,-500.0,0.00041095,30]
[325408760,1714854656461,-501.63931565,0.00041095,30]
[325408761,1714854656470,-456.89581624,0.00041095,30]
[325408762,1714854656480,-502.87063908,0.00041095,30]
[325408763,1714854656489,-544.68744858,0.00041095,30]
[325408764,1714854656498,-500.0,0.00041095,30]
[325408765,1714854656509,-503.70685132,0.00041095,30]
[325408766,1714854656518,-500.0,0.00041095,30]
[325408767,1714854656527,-501.3226113,0.00041095,30]
[325408768,1714854656536,-500.0,0.00041095,30]
[325408769,1714854656545,-500.0,0.00041095,30]
[325408770,1714854656554,-511.97771121,0.00041095,30]
[325408771,1714854656564,-500.94382626,0.00041095,30]
[325408772,1714854656573,-500.0,0.00041095,30]
[325408773,1714854656582,-500.0,0.00041095,30]
[325408774,1714854656592,-500.0,0.00041095,30]
[325408775,1714854656601,-500.0,0.00041095,30]
[325408776,1714854656612,-500.93141438,0.00041095,30]
[325408777,1714854656621,-500.0,0.00041095,30]
[325408778,1714854656631,-500.0,0.00041095,30]
[325408779,1714854656641,-501.20738495,0.00041095,30]
[325408780,1714854656651,-500.0,0.00041095,30]
[325408781,1714854656661,-551.47219392,0.00041095,30]
[325408782,1714854656671,-500.0,0.00041095,30]
[325408783,1714854656682,-500.0,0.00041095,30]
[325408784,1714854656692,-500.0,0.00041095,30]
[325408785,1714854656702,-500.0,0.00041095,30]
[325408786,1714854656712,-503.72998516,0.00041095,30]
[325408787,1714854656722,-500.84453834,0.00041095,30]
[325408788,1714854656732,-500.0,0.00041095,30]
[325408789,1714854656742,-510.97879687,0.00041095,30]
[325408790,1714854656751,-500.0,0.00041095,30]
[325408791,1714854656761,-500.0,0.00041095,30]
[325408792,1714854656771,-500.0,0.00041095,30]
[325408793,1714854656781,-500.0,0.00041095,30]
[325408794,1714854656791,-500.0,0.00041095,30]
[325408795,1714854656803,-500.0,0.00041095,30]
[325408796,1714854656813,-500.0,0.00041095,30]
[325408797,1714854656824,-500.0,0.00041095,30]
[325408798,1714854656835,-500.0,0.00041095,30]
[325408799,1714854656846,-500.0,0.00041095,30]
[325408800,1714854656855,-500.0,0.00041095,30]
[325408801,1714854656867,-500.0,0.00041095,30]
[325408802,1714854656877,-500.0,0.00041095,30]
[325408803,1714854656887,-500.0,0.00041095,30]
[325408804,1714854656897,-500.0,0.00041095,30]
[325408805,1714854656907,-500.0,0.00041095,30]
[325408806,1714854656917,-500.0,0.00041095,30]
[325408807,1714854656926,-500.0,0.00041095,30]
[325408808,1714854656935,-500.0,0.00041095,30]
[325408809,1714854656945,-321.55355181,0.00041095,2]
[325408810,1714854656955,-500.0,0.00041095,30]
[325408811,1714854656964,-500.0,0.00041095,30]
[325408812,1714854656974,-500.0,0.00041095,30]
[325408813,1714854656983,-500.0,0.00041095,30]
[325408814,1714854656993,-500.0,0.00041095,30]
[325408815,1714854657002,-500.0,0.00041095,30]
[325408816,1714854657011,-500.0,0.00041095,30]
[325408817,1714854657021,-500.0,0.00041095,30]
[325408818,1714854657031,-500.0,0.00041095,30]
[325408819,1714854657042,-501.61858589,0.00041095,30]
[325408820,1714854657053,-500.0,0.00041095,30]
[325408821,1714854657064,-500.0,0.00041095,30]
[325408822,1714854657074,-500.0,0.00041095,30]
[325408823,1714854657084,-500.0,0.00041095,30]
[325408824,1714854657094,-500.0,0.00041095,30]
[325408825,1714854657105,-500.0,0.00041095,30]
[325408826,1714854657116,-630.14,0.00041095,30]
[325408827,1714854657125,-500.0,0.00041095,30]
[325408828,1714854657135,-500.0,0.00041095,30]
[325408829,1714854657144,-500.0,0.00041095,30]
[325408830,1714854657154,-500.0,0.00041095,30]
[325408831,1714854657163,-506.01,0.00041095,30]
[325408832,1714854657173,-500.0,0.00041095,30]
[325408833,1714854657183,-1265.3,0.00041095,30]
[325408834,1714854657193,-500.0,0.00041095,30]
[325408835,1714854657203,-287.16175774,0.00041095,30]
[325408836,1714854657212,-500.0,0.00041095,30]
[325408837,1714854657222,-1232.69,0.00041095,30]
[325408838,1714854657231,-510.79,0.00041095,30]
[325408839,1714854657241,-500.0,0.00041095,30]